[Event "Titled Tuesday Blitz June 27 Late 2023"]
[White "Ter-Sahakyan, Samvel"]
[Black "Mirzoev, Azer"]
[WhiteFideId "13302531"]
[BlackFideId "13400304"]
[WhiteElo "2895"]
[BlackElo "2682"]
[Result "1/2-1/2"]
[Round "5"]
[TimeControl "180+2"]
[Date "2023.06.27"]
[WhiteClock "0:00:08"]
[BlackClock "0:00:21"]
[Board "51"]

1. d4 {[%clk 0:02:58]}  d5 {[%clk 0:02:58]} 2. c4 {[%clk 0:02:58]}  dxc4 {[%clk 0:02:58]} 3. e4 {[%clk 0:02:58]}  e5 {[%clk 0:02:56]} 4. Nf3 {[%clk 0:02:57]}  Bb4+ {[%clk 0:02:55]} 5. Bd2 {[%clk 0:02:57]}  Bxd2+ {[%clk 0:02:54]} 6. Qxd2 {[%clk 0:02:57]}  exd4 {[%clk 0:02:54]} 7. Nxd4 {[%clk 0:02:50]}  Nf6 {[%clk 0:02:48]} 8. Nc3 {[%clk 0:02:50]}  O-O {[%clk 0:02:45]} 9. Bxc4 {[%clk 0:02:48]}  c5 {[%clk 0:02:43]} 10. Nc2 {[%clk 0:02:25]}  Qxd2+ {[%clk 0:02:41]} 11. Kxd2 {[%clk 0:02:26]}  Rd8+ {[%clk 0:02:34]} 12. Ke2 {[%clk 0:02:18]}  Nc6 {[%clk 0:02:33]} 13. Rhd1 {[%clk 0:02:09]}  Be6 {[%clk 0:02:32]} 14. Bxe6 {[%clk 0:02:05]}  fxe6 {[%clk 0:02:32]} 15. f3 {[%clk 0:02:01]}  b6 {[%clk 0:02:30]} 16. Rxd8+ {[%clk 0:01:52]}  Rxd8 {[%clk 0:02:29]} 17. Rd1 {[%clk 0:01:53]}  Rxd1 {[%clk 0:02:30]} 18. Nxd1 {[%clk 0:01:50]}  Kf7 {[%clk 0:02:30]} 19. Nde3 {[%clk 0:01:49]}  Ke7 {[%clk 0:02:28]} 20. a4 {[%clk 0:01:44]}  g5 {[%clk 0:02:23]} 21. Nc4 {[%clk 0:01:40]}  Nd7 {[%clk 0:02:21]} 22. g3 {[%clk 0:01:35]}  Nde5 {[%clk 0:02:20]} 23. Nd2 {[%clk 0:01:29]}  Ng6 {[%clk 0:02:07]} 24. Ke3 {[%clk 0:01:29]}  Nge5 {[%clk 0:01:55]} 25. b3 {[%clk 0:01:20]}  a6 {[%clk 0:01:50]} 26. h3 {[%clk 0:01:20]}  b5 {[%clk 0:01:43]} 27. axb5 {[%clk 0:01:19]}  axb5 {[%clk 0:01:43]} 28. f4 {[%clk 0:01:20]}  gxf4+ {[%clk 0:01:44]} 29. gxf4 {[%clk 0:01:21]}  Nd7 {[%clk 0:01:44]} 30. Na3 {[%clk 0:01:17]}  Nd4 {[%clk 0:01:38]} 31. Kd3 {[%clk 0:00:42]}  Nf6 {[%clk 0:01:24]} 32. Nab1 {[%clk 0:00:41]}  Nh5 {[%clk 0:01:20]} 33. Ke3 {[%clk 0:00:41]}  Nc2+ {[%clk 0:01:17]} 34. Kf3 {[%clk 0:00:37]}  Kd6 {[%clk 0:01:06]} 35. Nc3 {[%clk 0:00:33]}  Nd4+ {[%clk 0:01:05]} 36. Kg4 {[%clk 0:00:31]}  Nf6+ {[%clk 0:00:49]} 37. Kg5 {[%clk 0:00:31]}  Nd7 {[%clk 0:00:49]} 38. Kh6 {[%clk 0:00:27]}  b4 {[%clk 0:00:47]} 39. Nd1 {[%clk 0:00:25]}  Ne2 {[%clk 0:00:46]} 40. f5 {[%clk 0:00:13]}  exf5 {[%clk 0:00:42]} 41. exf5 {[%clk 0:00:14]}  Ke5 {[%clk 0:00:40]} 42. Kxh7 {[%clk 0:00:12]}  Kxf5 {[%clk 0:00:40]} 43. Kg7 {[%clk 0:00:12]}  Nf4 {[%clk 0:00:35]} 44. Kf7 {[%clk 0:00:12]}  Nxh3 {[%clk 0:00:32]} 45. Ke7 {[%clk 0:00:12]}  Ne5 {[%clk 0:00:32]} 46. Kd6 {[%clk 0:00:12]}  c4 {[%clk 0:00:25]} 47. bxc4 {[%clk 0:00:09]}  Ng5 {[%clk 0:00:24]} 48. c5 {[%clk 0:00:08]}  Ne4+ {[%clk 0:00:20]} 49. Nxe4 {[%clk 0:00:08]}  Kxe4 {[%clk 0:00:21]} 50. c6 {[%clk 0:00:08]}  Nxc6 {[%clk 0:00:21]} 51. Kxc6 {[%clk 0:00:08]}  b3 {[%clk 0:00:21]} 52. Kb5 {[%clk 0:00:09]}  b2 {[%clk 0:00:21]} 53. Nxb2 {[%clk 0:00:08]} 1/2-1/2


[Site "https://www.chess.com"]

[Event "Titled Tuesday Blitz June 27 Late 2023"]
[White "Janaszak, Dawid"]
[Black "Hamidi, Amir Mohammad"]
[WhiteFideId "1119206"]
[BlackFideId "12563285"]
[WhiteElo "2574"]
[BlackElo "2826"]
[Result "0-1"]
[Round "5"]
[TimeControl "180+2"]
[Date "2023.06.27"]
[WhiteClock "0:00:00"]
[BlackClock "0:00:22"]
[Board "53"]

1. d4 {[%clk 0:03:00]}  Nf6 {[%clk 0:02:55]} 2. Nf3 {[%clk 0:03:00]}  g6 {[%clk 0:02:55]} 3. Bg5 {[%clk 0:02:57]}  Bg7 {[%clk 0:02:55]} 4. c3 {[%clk 0:02:58]}  O-O {[%clk 0:02:54]} 5. Nbd2 {[%clk 0:02:58]}  d6 {[%clk 0:02:55]} 6. e4 {[%clk 0:02:58]}  Nc6 {[%clk 0:02:56]} 7. Be2 {[%clk 0:02:56]}  h6 {[%clk 0:02:56]} 8. Bh4 {[%clk 0:02:54]}  e5 {[%clk 0:02:57]} 9. dxe5 {[%clk 0:02:53]}  Nxe5 {[%clk 0:02:57]} 10. O-O {[%clk 0:02:53]}  Qe7 {[%clk 0:02:57]} 11. Nxe5 {[%clk 0:02:49]}  dxe5 {[%clk 0:02:58]} 12. Bc4 {[%clk 0:02:46]}  Rd8 {[%clk 0:02:54]} 13. Qc2 {[%clk 0:02:40]}  Bg4 {[%clk 0:02:37]} 14. h3 {[%clk 0:02:35]}  Be6 {[%clk 0:02:33]} 15. Bxe6 {[%clk 0:02:35]}  Qxe6 {[%clk 0:02:34]} 16. Rfd1 {[%clk 0:02:28]}  Rd6 {[%clk 0:02:32]} 17. Bxf6 {[%clk 0:02:19]}  Bxf6 {[%clk 0:02:32]} 18. Nf1 {[%clk 0:01:59]}  Rad8 {[%clk 0:02:29]} 19. Rxd6 {[%clk 0:01:59]}  Rxd6 {[%clk 0:02:28]} 20. a4 {[%clk 0:01:46]}  Bg5 {[%clk 0:02:27]} 21. Rd1 {[%clk 0:01:41]}  Qd7 {[%clk 0:02:13]} 22. Rxd6 {[%clk 0:01:40]}  Qxd6 {[%clk 0:02:14]} 23. Qb3 {[%clk 0:01:39]}  b6 {[%clk 0:02:07]} 24. g3 {[%clk 0:01:35]}  h5 {[%clk 0:02:07]} 25. h4 {[%clk 0:01:35]}  Bh6 {[%clk 0:02:07]} 26. Qc4 {[%clk 0:01:33]}  c6 {[%clk 0:02:03]} 27. b4 {[%clk 0:01:21]}  Kg7 {[%clk 0:02:01]} 28. b5 {[%clk 0:01:20]}  c5 {[%clk 0:01:50]} 29. Kg2 {[%clk 0:01:20]}  Qd7 {[%clk 0:01:41]} 30. Nh2 {[%clk 0:01:15]}  f6 {[%clk 0:01:32]} 31. Nf3 {[%clk 0:01:14]}  Qd6 {[%clk 0:01:33]} 32. Ng1 {[%clk 0:01:11]}  Bc1 {[%clk 0:01:22]} 33. Ne2 {[%clk 0:01:06]}  Bd2 {[%clk 0:01:17]} 34. Ng1 {[%clk 0:01:01]}  Bc1 {[%clk 0:01:13]} 35. Ne2 {[%clk 0:01:01]}  Bh6 {[%clk 0:01:12]} 36. Ng1 {[%clk 0:00:59]}  Kf8 {[%clk 0:01:11]} 37. Nh3 {[%clk 0:00:57]}  Qd7 {[%clk 0:01:09]} 38. a5 {[%clk 0:00:49]}  bxa5 {[%clk 0:00:40]} 39. Qxc5+ {[%clk 0:00:46]}  Qe7 {[%clk 0:00:40]} 40. Qc8+ {[%clk 0:00:43]}  Kf7 {[%clk 0:00:38]} 41. Qa6 {[%clk 0:00:40]}  Qc7 {[%clk 0:00:36]} 42. c4 {[%clk 0:00:35]}  Bf8 {[%clk 0:00:36]} 43. Ng1 {[%clk 0:00:25]}  Bc5 {[%clk 0:00:34]} 44. Ne2 {[%clk 0:00:25]}  Bb6 {[%clk 0:00:33]} 45. c5 {[%clk 0:00:14]}  Qxc5 {[%clk 0:00:31]} 46. Qb7+ {[%clk 0:00:15]}  Ke6 {[%clk 0:00:32]} 47. Kh3 {[%clk 0:00:09]}  Qc4 {[%clk 0:00:22]} 48. Ng1 {[%clk 0:00:06]}  Qf1+ {[%clk 0:00:21]} 49. Kh2 {[%clk 0:00:05]}  Qxf2+ {[%clk 0:00:21]} 50. Kh3 {[%clk 0:00:06]}  Qf1+ {[%clk 0:00:22]} 51. Kh2 {[%clk 0:00:00]}  Bxg1+ {[%clk 0:00:22]} 0-1


[Site "https://www.chess.com"]

[Event "Titled Tuesday Blitz June 27 Late 2023"]
[White "Ladron De Guevara Pinto, Paolo"]
[Black "Tsaruk, Maksim"]
[WhiteFideId "2290847"]
[BlackFideId "13511173"]
[WhiteElo "2558"]
[BlackElo "2780"]
[Result "0-1"]
[Round "5"]
[TimeControl "180+2"]
[Date "2023.06.27"]
[WhiteClock "0:00:00"]
[BlackClock "0:00:04"]
[Board "55"]

1. e4 {[%clk 0:02:59]}  e5 {[%clk 0:02:58]} 2. Nf3 {[%clk 0:02:59]}  Nc6 {[%clk 0:02:59]} 3. Bb5 {[%clk 0:02:58]}  a6 {[%clk 0:02:59]} 4. Ba4 {[%clk 0:02:57]}  Nge7 {[%clk 0:02:58]} 5. c3 {[%clk 0:02:57]}  g6 {[%clk 0:02:58]} 6. d4 {[%clk 0:02:56]}  exd4 {[%clk 0:02:59]} 7. cxd4 {[%clk 0:02:56]}  Bg7 {[%clk 0:03:00]} 8. O-O {[%clk 0:02:55]}  b5 {[%clk 0:03:00]} 9. Bb3 {[%clk 0:02:53]}  O-O {[%clk 0:03:01]} 10. Nc3 {[%clk 0:02:47]}  d6 {[%clk 0:03:02]} 11. h3 {[%clk 0:02:46]}  Na5 {[%clk 0:03:02]} 12. Bc2 {[%clk 0:02:45]}  c5 {[%clk 0:03:03]} 13. Re1 {[%clk 0:02:11]}  Bb7 {[%clk 0:02:45]} 14. d5 {[%clk 0:02:02]}  Rc8 {[%clk 0:02:38]} 15. Rb1 {[%clk 0:01:52]}  h6 {[%clk 0:02:35]} 16. Ne2 {[%clk 0:01:42]}  f5 {[%clk 0:02:34]} 17. Nf4 {[%clk 0:01:39]}  Qd7 {[%clk 0:02:15]} 18. e5 {[%clk 0:01:25]}  dxe5 {[%clk 0:02:08]} 19. Nxe5 {[%clk 0:01:26]}  Bxe5 {[%clk 0:02:08]} 20. Rxe5 {[%clk 0:01:25]}  Nc4 {[%clk 0:02:07]} 21. Rxe7 {[%clk 0:01:24]}  Qxe7 {[%clk 0:02:04]} 22. Nxg6 {[%clk 0:01:24]}  Qg7 {[%clk 0:01:44]} 23. Nxf8 {[%clk 0:01:23]}  Rxf8 {[%clk 0:01:45]} 24. b3 {[%clk 0:01:11]}  Nb6 {[%clk 0:01:44]} 25. Bb2 {[%clk 0:00:54]}  Qg6 {[%clk 0:01:43]} 26. f4 {[%clk 0:00:32]}  Nxd5 {[%clk 0:01:39]} 27. Qf3 {[%clk 0:00:25]}  Rf7 {[%clk 0:01:37]} 28. Rd1 {[%clk 0:00:21]}  Rd7 {[%clk 0:01:18]} 29. Rd2 {[%clk 0:00:21]}  b4 {[%clk 0:00:43]} 30. Bd3 {[%clk 0:00:17]}  Kf8 {[%clk 0:00:35]} 31. Bc4 {[%clk 0:00:15]}  Nc3 {[%clk 0:00:33]} 32. Qe3 {[%clk 0:00:09]}  Rxd2 {[%clk 0:00:07]} 33. Qxd2 {[%clk 0:00:09]}  Qf6 {[%clk 0:00:08]} 34. Qd7 {[%clk 0:00:07]}  Be4 {[%clk 0:00:07]} 35. Qc8+ {[%clk 0:00:05]}  Ke7 {[%clk 0:00:05]} 36. Qxc5+ {[%clk 0:00:05]}  Kd7 {[%clk 0:00:05]} 37. Qa7+ {[%clk 0:00:03]}  Kd8 {[%clk 0:00:04]} 38. Qb8+ {[%clk 0:00:03]}  Kd7 {[%clk 0:00:04]} 39. Qb7+ {[%clk 0:00:00]}  Bxb7 {[%clk 0:00:04]} 0-1


[Site "https://www.chess.com"]

[Event "Titled Tuesday Blitz June 27 Late 2023"]
[White "Matinian, Nikita"]
[Black "JackRodgers"]
[WhiteFideId "24129100"]
[WhiteElo "2734"]
[BlackElo "2544"]
[Result "0-1"]
[Round "5"]
[TimeControl "180+2"]
[Date "2023.06.27"]
[WhiteClock "0:00:02"]
[BlackClock "0:00:36"]
[Board "56"]

1. e4 {[%clk 0:03:00]}  c5 {[%clk 0:02:58]} 2. Nf3 {[%clk 0:03:01]}  g6 {[%clk 0:02:58]} 3. d4 {[%clk 0:03:00]}  cxd4 {[%clk 0:02:59]} 4. Nxd4 {[%clk 0:03:01]}  Nc6 {[%clk 0:03:00]} 5. c4 {[%clk 0:02:58]}  Bg7 {[%clk 0:03:00]} 6. Nb3 {[%clk 0:02:54]}  Nf6 {[%clk 0:02:59]} 7. Nc3 {[%clk 0:02:54]}  d6 {[%clk 0:02:59]} 8. Be2 {[%clk 0:02:53]}  O-O {[%clk 0:02:59]} 9. O-O {[%clk 0:02:53]}  Be6 {[%clk 0:02:56]} 10. Be3 {[%clk 0:02:51]}  Ne5 {[%clk 0:02:50]} 11. c5 {[%clk 0:02:46]}  d5 {[%clk 0:02:15]} 12. Nd4 {[%clk 0:02:37]}  Bc8 {[%clk 0:02:01]} 13. Bf4 {[%clk 0:02:03]}  Nxe4 {[%clk 0:01:55]} 14. Nxe4 {[%clk 0:01:50]}  dxe4 {[%clk 0:01:56]} 15. Nb5 {[%clk 0:01:49]}  Bd7 {[%clk 0:01:49]} 16. Nc3 {[%clk 0:01:45]}  Bc6 {[%clk 0:01:46]} 17. Qb3 {[%clk 0:01:35]}  Nd3 {[%clk 0:01:44]} 18. Rfd1 {[%clk 0:01:30]}  Qc8 {[%clk 0:01:39]} 19. Be3 {[%clk 0:01:21]}  Rd8 {[%clk 0:01:35]} 20. Nxe4 {[%clk 0:01:12]}  Bxe4 {[%clk 0:01:30]} 21. Bxd3 {[%clk 0:01:10]}  Bxd3 {[%clk 0:01:31]} 22. Rxd3 {[%clk 0:01:11]}  Rxd3 {[%clk 0:01:30]} 23. Qxd3 {[%clk 0:01:11]}  Bxb2 {[%clk 0:01:31]} 24. Rb1 {[%clk 0:01:11]}  Bf6 {[%clk 0:01:31]} 25. Qb5 {[%clk 0:01:05]}  Rb8 {[%clk 0:01:25]} 26. c6 {[%clk 0:01:05]}  b6 {[%clk 0:01:23]} 27. Bf4 {[%clk 0:00:53]}  a6 {[%clk 0:01:14]} 28. Qd5 {[%clk 0:00:41]}  e5 {[%clk 0:01:06]} 29. Bxe5 {[%clk 0:00:22]}  Qf5 {[%clk 0:01:06]} 30. Re1 {[%clk 0:00:18]}  Bxe5 {[%clk 0:01:00]} 31. g3 {[%clk 0:00:07]}  Bc3 {[%clk 0:00:39]} 32. Rd1 {[%clk 0:00:04]}  Qxd5 {[%clk 0:00:38]} 33. Rxd5 {[%clk 0:00:05]}  Rc8 {[%clk 0:00:38]} 34. Rd6 {[%clk 0:00:05]}  Be5 {[%clk 0:00:35]} 35. Rd5 {[%clk 0:00:05]}  Bc3 {[%clk 0:00:35]} 36. Rd6 {[%clk 0:00:04]}  Bb4 {[%clk 0:00:35]} 37. Rd4 {[%clk 0:00:04]}  a5 {[%clk 0:00:35]} 38. Rc4 {[%clk 0:00:02]}  Bc5 {[%clk 0:00:36]} 0-1


[Site "https://www.chess.com"]

[Event "Titled Tuesday Blitz June 27 Late 2023"]
[White "Hambleton, Aman"]
[Black "Hajiyev, Kanan"]
[WhiteFideId "2606577"]
[BlackFideId "13404148"]
[WhiteElo "2709"]
[BlackElo "2539"]
[Result "1/2-1/2"]
[Round "5"]
[TimeControl "180+2"]
[Date "2023.06.27"]
[WhiteClock "0:00:05"]
[BlackClock "0:00:54"]
[Board "58"]

1. e4 {[%clk 0:03:00]}  c6 {[%clk 0:02:43]} 2. d4 {[%clk 0:02:59]}  d5 {[%clk 0:02:44]} 3. exd5 {[%clk 0:03:00]}  cxd5 {[%clk 0:02:42]} 4. Bd3 {[%clk 0:03:00]}  Qc7 {[%clk 0:02:43]} 5. c3 {[%clk 0:02:41]}  Nc6 {[%clk 0:02:41]} 6. h3 {[%clk 0:02:39]}  Nf6 {[%clk 0:02:40]} 7. Nf3 {[%clk 0:02:38]}  g6 {[%clk 0:02:41]} 8. O-O {[%clk 0:01:57]}  Bg7 {[%clk 0:02:41]} 9. Qe2 {[%clk 0:01:31]}  O-O {[%clk 0:02:39]} 10. Re1 {[%clk 0:01:26]}  Re8 {[%clk 0:02:36]} 11. Nbd2 {[%clk 0:01:18]}  Bf5 {[%clk 0:02:35]} 12. Bxf5 {[%clk 0:01:17]}  gxf5 {[%clk 0:02:36]} 13. Ne5 {[%clk 0:01:13]}  Nxe5 {[%clk 0:02:34]} 14. Qxe5 {[%clk 0:01:10]}  Qxe5 {[%clk 0:02:33]} 15. Rxe5 {[%clk 0:01:10]}  e6 {[%clk 0:02:33]} 16. Re1 {[%clk 0:00:45]}  a6 {[%clk 0:02:27]} 17. Nb3 {[%clk 0:00:20]}  Bf8 {[%clk 0:02:20]} 18. f3 {[%clk 0:00:14]}  Kg7 {[%clk 0:02:13]} 19. g4 {[%clk 0:00:12]}  fxg4 {[%clk 0:02:11]} 20. hxg4 {[%clk 0:00:13]}  h5 {[%clk 0:02:11]} 21. g5 {[%clk 0:00:13]}  Nd7 {[%clk 0:02:11]} 22. Bf4 {[%clk 0:00:10]}  b5 {[%clk 0:02:08]} 23. Kf2 {[%clk 0:00:03]}  b4 {[%clk 0:02:08]} 24. cxb4 {[%clk 0:00:01]}  Bxb4 {[%clk 0:02:08]} 25. Rh1 {[%clk 0:00:02]}  Rh8 {[%clk 0:02:09]} 26. Nc1 {[%clk 0:00:02]}  Rac8 {[%clk 0:02:08]} 27. Nd3 {[%clk 0:00:03]}  Rc2+ {[%clk 0:02:08]} 28. Kg3 {[%clk 0:00:03]}  Be7 {[%clk 0:02:08]} 29. Rac1 {[%clk 0:00:03]}  Rc4 {[%clk 0:02:03]} 30. Ne5 {[%clk 0:00:02]}  Nxe5 {[%clk 0:01:39]} 31. Bxe5+ {[%clk 0:00:03]}  f6 {[%clk 0:01:40]} 32. gxf6+ {[%clk 0:00:02]}  Bxf6 {[%clk 0:01:41]} 33. Bxf6+ {[%clk 0:00:02]}  Kxf6 {[%clk 0:01:41]} 34. Rxc4 {[%clk 0:00:03]}  dxc4 {[%clk 0:01:42]} 35. Rc1 {[%clk 0:00:02]}  Rc8 {[%clk 0:01:40]} 36. Kf4 {[%clk 0:00:01]}  a5 {[%clk 0:01:39]} 37. Rc3 {[%clk 0:00:02]}  Rb8 {[%clk 0:01:35]} 38. Rxc4 {[%clk 0:00:02]}  Rxb2 {[%clk 0:01:36]} 39. Ra4 {[%clk 0:00:01]}  Rb5 {[%clk 0:01:36]} 40. Rc4 {[%clk 0:00:01]}  Rd5 {[%clk 0:01:34]} 41. a4 {[%clk 0:00:01]}  Rd7 {[%clk 0:01:29]} 42. Kg3 {[%clk 0:00:02]}  Rb7 {[%clk 0:01:25]} 43. Rc5 {[%clk 0:00:02]}  Rb4 {[%clk 0:01:25]} 44. Rxh5 {[%clk 0:00:01]}  Rxa4 {[%clk 0:01:25]} 45. d5 {[%clk 0:00:02]}  e5 {[%clk 0:01:21]} 46. Rh6+ {[%clk 0:00:02]}  Kf5 {[%clk 0:01:20]} 47. Rh5+ {[%clk 0:00:02]}  Kf6 {[%clk 0:01:21]} 48. Rh6+ {[%clk 0:00:03]}  Kf5 {[%clk 0:01:20]} 49. d6 {[%clk 0:00:02]}  Rd4 {[%clk 0:01:20]} 50. Rh5+ {[%clk 0:00:02]}  Ke6 {[%clk 0:01:20]} 51. Rh6+ {[%clk 0:00:03]}  Kd5 {[%clk 0:01:20]} 52. Kf2 {[%clk 0:00:02]}  Kc4 {[%clk 0:01:19]} 53. Ke3 {[%clk 0:00:02]}  a4 {[%clk 0:01:19]} 54. Re6 {[%clk 0:00:02]}  Rd5 {[%clk 0:01:15]} 55. d7 {[%clk 0:00:02]}  a3 {[%clk 0:01:13]} 56. d8=Q {[%clk 0:00:01]}  Rxd8 {[%clk 0:01:12]} 57. Rxe5 {[%clk 0:00:01]}  Rd5 {[%clk 0:01:08]} 58. Re4+ {[%clk 0:00:01]}  Kb3 {[%clk 0:01:08]} 59. Re7 {[%clk 0:00:01]}  Ra5 {[%clk 0:01:07]} 60. Rb7+ {[%clk 0:00:01]}  Kc2 {[%clk 0:01:08]} 61. Rc7+ {[%clk 0:00:02]}  Kd1 {[%clk 0:01:08]} 62. Rd7+ {[%clk 0:00:02]}  Ke1 {[%clk 0:01:05]} 63. Rh7 {[%clk 0:00:02]}  Kd1 {[%clk 0:01:02]} 64. Rh1+ {[%clk 0:00:03]}  Kc2 {[%clk 0:01:02]} 65. f4 {[%clk 0:00:03]}  a2 {[%clk 0:01:03]} 66. Ke4 {[%clk 0:00:03]}  Rb5 {[%clk 0:01:00]} 67. Rh2+ {[%clk 0:00:03]}  Kb3 {[%clk 0:00:58]} 68. Rxa2 {[%clk 0:00:03]}  Kxa2 {[%clk 0:00:58]} 69. f5 {[%clk 0:00:04]}  Kb3 {[%clk 0:00:56]} 70. f6 {[%clk 0:00:05]}  Kc4 {[%clk 0:00:55]} 71. f7 {[%clk 0:00:03]}  Rb8 {[%clk 0:00:55]} 72. Ke5 {[%clk 0:00:04]}  Rf8 {[%clk 0:00:53]} 73. Ke6 {[%clk 0:00:04]}  Kc5 {[%clk 0:00:53]} 74. Ke7 {[%clk 0:00:05]}  Rxf7+ {[%clk 0:00:54]} 75. Kxf7 {[%clk 0:00:05]} 1/2-1/2


[Site "https://www.chess.com"]

[Event "Titled Tuesday Blitz June 27 Late 2023"]
[White "Cugimura97"]
[Black "Tologon tegin, Semetei"]
[BlackFideId "13800574"]
[WhiteElo "2700"]
[BlackElo "2537"]
[Result "0-1"]
[Round "5"]
[TimeControl "180+2"]
[Date "2023.06.27"]
[WhiteClock "0:00:27"]
[BlackClock "0:00:31"]
[Board "59"]

1. d4 {[%clk 0:03:00]}  e6 {[%clk 0:02:50]} 2. c4 {[%clk 0:03:00]}  b6 {[%clk 0:02:50]} 3. Nf3 {[%clk 0:02:59]}  Bb7 {[%clk 0:02:50]} 4. g3 {[%clk 0:02:58]}  f5 {[%clk 0:02:50]} 5. Bg2 {[%clk 0:02:58]}  Nf6 {[%clk 0:02:50]} 6. O-O {[%clk 0:02:59]}  Be7 {[%clk 0:02:50]} 7. Nc3 {[%clk 0:02:59]}  O-O {[%clk 0:02:50]} 8. b3 {[%clk 0:02:59]}  Ne4 {[%clk 0:02:46]} 9. Bb2 {[%clk 0:02:58]}  Nxc3 {[%clk 0:02:46]} 10. Bxc3 {[%clk 0:02:59]}  Be4 {[%clk 0:02:46]} 11. Ne5 {[%clk 0:02:56]}  d6 {[%clk 0:02:44]} 12. Nd3 {[%clk 0:02:51]}  Bxg2 {[%clk 0:02:43]} 13. Kxg2 {[%clk 0:02:51]}  Bg5 {[%clk 0:02:30]} 14. e3 {[%clk 0:02:43]}  Nd7 {[%clk 0:02:30]} 15. Nf4 {[%clk 0:02:29]}  Qe7 {[%clk 0:02:24]} 16. Qf3 {[%clk 0:02:25]}  a5 {[%clk 0:02:15]} 17. Rad1 {[%clk 0:02:23]}  Rae8 {[%clk 0:02:13]} 18. h4 {[%clk 0:02:09]}  Bh6 {[%clk 0:02:13]} 19. Rfe1 {[%clk 0:02:07]}  Nf6 {[%clk 0:02:12]} 20. d5 {[%clk 0:01:58]}  Bxf4 {[%clk 0:02:10]} 21. Bxf6 {[%clk 0:01:55]}  Qxf6 {[%clk 0:02:09]} 22. exf4 {[%clk 0:01:53]}  e5 {[%clk 0:02:09]} 23. fxe5 {[%clk 0:01:42]}  dxe5 {[%clk 0:02:09]} 24. Re2 {[%clk 0:01:40]}  f4 {[%clk 0:02:06]} 25. Rde1 {[%clk 0:01:32]}  Re7 {[%clk 0:02:00]} 26. Re4 {[%clk 0:01:31]}  g6 {[%clk 0:00:50]} 27. gxf4 {[%clk 0:01:10]}  Qxh4 {[%clk 0:00:49]} 28. Qg3 {[%clk 0:01:09]}  Qh6 {[%clk 0:00:40]} 29. fxe5 {[%clk 0:01:02]}  Rf5 {[%clk 0:00:40]} 30. f4 {[%clk 0:00:46]}  g5 {[%clk 0:00:38]} 31. fxg5 {[%clk 0:00:43]}  Rxg5 {[%clk 0:00:37]} 32. Rg4 {[%clk 0:00:42]}  Rxg4 {[%clk 0:00:37]} 33. Qxg4+ {[%clk 0:00:40]}  Rg7 {[%clk 0:00:37]} 34. Re4 {[%clk 0:00:31]}  Qd2+ {[%clk 0:00:33]} 35. Kf3 {[%clk 0:00:27]}  Qd1+ {[%clk 0:00:31]} 0-1


[Site "https://www.chess.com"]

[Event "Titled Tuesday Blitz June 27 Late 2023"]
[White "Velikanov, Alexander"]
[Black "Rangel, Daniel"]
[WhiteFideId "2039290"]
[BlackFideId "2124475"]
[WhiteElo "2690"]
[BlackElo "2441"]
[Result "0-1"]
[Round "5"]
[TimeControl "180+2"]
[Date "2023.06.27"]
[WhiteClock "0:00:06"]
[BlackClock "0:00:08"]
[Board "60"]

1. d4 {[%clk 0:03:00]}  Nf6 {[%clk 0:02:59]} 2. Nf3 {[%clk 0:02:57]}  e6 {[%clk 0:02:57]} 3. Bg5 {[%clk 0:02:56]}  Be7 {[%clk 0:02:57]} 4. Nbd2 {[%clk 0:02:56]}  b6 {[%clk 0:02:57]} 5. e4 {[%clk 0:02:55]}  Bb7 {[%clk 0:02:57]} 6. e5 {[%clk 0:02:53]}  Ne4 {[%clk 0:02:57]} 7. Bxe7 {[%clk 0:02:51]}  Qxe7 {[%clk 0:02:58]} 8. Nxe4 {[%clk 0:02:49]}  Bxe4 {[%clk 0:02:58]} 9. Bd3 {[%clk 0:02:49]}  Bg6 {[%clk 0:02:57]} 10. O-O {[%clk 0:02:48]}  d5 {[%clk 0:02:56]} 11. a4 {[%clk 0:02:32]}  O-O {[%clk 0:02:54]} 12. a5 {[%clk 0:02:25]}  Nc6 {[%clk 0:02:54]} 13. a6 {[%clk 0:02:21]}  Bxd3 {[%clk 0:02:44]} 14. Qxd3 {[%clk 0:02:20]}  Nb4 {[%clk 0:02:44]} 15. Qb5 {[%clk 0:02:00]}  Nxc2 {[%clk 0:02:19]} 16. Ra4 {[%clk 0:01:59]}  c5 {[%clk 0:02:14]} 17. Rc1 {[%clk 0:01:48]}  Nxd4 {[%clk 0:02:09]} 18. Nxd4 {[%clk 0:01:49]}  cxd4 {[%clk 0:02:10]} 19. Qc6 {[%clk 0:01:35]}  d3 {[%clk 0:02:02]} 20. Rd4 {[%clk 0:01:33]}  Qg5 {[%clk 0:01:42]} 21. f4 {[%clk 0:01:29]}  Qf5 {[%clk 0:01:42]} 22. Qc3 {[%clk 0:01:22]}  g6 {[%clk 0:01:34]} 23. Kf2 {[%clk 0:01:19]}  Kg7 {[%clk 0:01:24]} 24. Kf3 {[%clk 0:01:18]}  h5 {[%clk 0:01:21]} 25. Qxd3 {[%clk 0:01:15]}  Qg4+ {[%clk 0:01:14]} 26. Kf2 {[%clk 0:01:14]}  Rac8 {[%clk 0:01:00]} 27. Qd2 {[%clk 0:01:04]}  Rxc1 {[%clk 0:00:36]} 28. Qxc1 {[%clk 0:01:03]}  f6 {[%clk 0:00:37]} 29. Qc7+ {[%clk 0:01:00]}  Kg8 {[%clk 0:00:21]} 30. exf6 {[%clk 0:00:49]}  Rxf6 {[%clk 0:00:17]} 31. g3 {[%clk 0:00:41]}  Rf7 {[%clk 0:00:15]} 32. Qb8+ {[%clk 0:00:38]}  Kh7 {[%clk 0:00:15]} 33. Rd2 {[%clk 0:00:32]}  g5 {[%clk 0:00:14]} 34. Qe8 {[%clk 0:00:24]}  Kg7 {[%clk 0:00:13]} 35. Rc2 {[%clk 0:00:08]}  gxf4 {[%clk 0:00:12]} 36. Rc8 {[%clk 0:00:08]}  fxg3+ {[%clk 0:00:12]} 37. Ke1 {[%clk 0:00:09]}  Qe4+ {[%clk 0:00:11]} 38. Kd2 {[%clk 0:00:08]}  Rf2+ {[%clk 0:00:11]} 39. Kc3 {[%clk 0:00:08]}  Rf3+ {[%clk 0:00:08]} 40. Kd2 {[%clk 0:00:07]}  Qd3+ {[%clk 0:00:08]} 41. Kc1 {[%clk 0:00:06]}  Rf1# {[%clk 0:00:08]} 0-1


[Site "https://www.chess.com"]